[Event "*** Titled Tuesday Blitz"]
[Site "Chess.com"]
[Date "2019.08.06"]
[Round "8"]
[White "ChadBiryani"]
[Black "pedromartinez91"]
[Result "0-1"]
[WhiteElo "2384"]
[BlackElo "2462"]
[TimeControl "180+2"]
[EndTime "14:53:57 PDT"]
[Termination "pedromartinez91 won by resignation"]

1. d4 {[%clk 0:02:53.4]} 1... d6 {[%clk 0:03:00.7]} 2. Bf4 {[%clk 0:02:50.9]}
2... Nf6 {[%clk 0:03:02.6]} 3. e3 {[%clk 0:02:51.6]} 3... Nbd7 {[%clk
0:03:04.1]} 4. h3 {[%clk 0:02:51.2]} 4... e5 {[%clk 0:02:54.6]} 5. Bh2 {[%clk
0:02:45.5]} 5... Be7 {[%clk 0:02:50.6]} 6. c3 {[%clk 0:02:44.1]} 6... O-O {[%clk
0:02:50.5]} 7. Nd2 {[%clk 0:02:44.2]} 7... Re8 {[%clk 0:02:51.1]} 8. Bd3 {[%clk
0:02:41.6]} 8... exd4 {[%clk 0:02:51.6]} 9. cxd4 {[%clk 0:02:42.4]} 9... c5
{[%clk 0:02:51.3]} 10. Ngf3 {[%clk 0:02:39.1]} 10... Nf8 {[%clk 0:02:43.4]} 11.
O-O {[%clk 0:02:38.4]} 11... b6 {[%clk 0:02:42.1]} 12. Qe2 {[%clk 0:02:12.5]}
12... Bb7 {[%clk 0:02:40.4]} 13. Rfd1 {[%clk 0:02:10.3]} 13... d5 {[%clk
0:02:41.1]} 14. Rac1 {[%clk 0:02:04]} 14... c4 {[%clk 0:02:37]} 15. Bb1 {[%clk
0:02:02.4]} 15... Ng6 {[%clk 0:02:35.1]} 16. Ne5 {[%clk 0:01:49.3]} 16... Bd6
{[%clk 0:02:34.4]} 17. f4 {[%clk 0:01:46.6]} 17... b5 {[%clk 0:02:35.5]} 18. b3
{[%clk 0:01:41.5]} 18... Nd7 {[%clk 0:02:35.5]} 19. Qh5 {[%clk 0:01:20.4]} 19...
Ndxe5 {[%clk 0:02:29.7]} 20. fxe5 {[%clk 0:01:19]} 20... Be7 {[%clk 0:02:31]}
21. Qf3 {[%clk 0:01:15.8]} 21... f6 {[%clk 0:02:29.9]} 22. Rf1 {[%clk
0:01:10.1]} 22... Rf8 {[%clk 0:02:18.7]} 23. Qh5 {[%clk 0:01:01.5]} 23... fxe5
{[%clk 0:02:18.7]} 24. Bxg6 {[%clk 0:00:54]} 24... hxg6 {[%clk 0:02:20.6]} 25.
Qxe5 {[%clk 0:00:51.8]} 25... Rf6 {[%clk 0:02:11.1]} 26. Qg3 {[%clk 0:00:41.2]}
26... Bd6 {[%clk 0:02:01.5]} 27. Qg4 {[%clk 0:00:42]} 27... Bxh2+ {[%clk
0:02:02.2]} 28. Kxh2 {[%clk 0:00:41.5]} 28... Qd6+ {[%clk 0:02:02.9]} 29. Kg1
{[%clk 0:00:42.2]} 29... Rxf1+ {[%clk 0:02:01.9]} 30. Nxf1 {[%clk 0:00:42.7]}
30... Rc8 {[%clk 0:01:59]} 31. Nd2 {[%clk 0:00:32.9]} 31... c3 {[%clk
0:01:56.5]} 32. Nf3 {[%clk 0:00:31.8]} 32... c2 {[%clk 0:01:54.2]} 33. Ne5
{[%clk 0:00:27.4]} 33... Qa3 {[%clk 0:01:47.2]} 34. Qe6+ {[%clk 0:00:23.9]}
34... Kh8 {[%clk 0:01:48.1]} 35. Nxg6+ {[%clk 0:00:21.4]} 35... Kh7 {[%clk
0:01:49.2]} 36. Qf5 {[%clk 0:00:06.8]} 36... Qxc1+ {[%clk 0:01:47.8]} 37. Kh2
{[%clk 0:00:07.7]} 37... Qxe3 {[%clk 0:01:14.1]} 38. Nf4+ {[%clk 0:00:06.4]}
38... Kg8 {[%clk 0:01:13.9]} 39. Ne6 {[%clk 0:00:03.4]} 39... c1=Q {[%clk
0:01:10.4]} 40. Qg5 {[%clk 0:00:04.3]} 40... Qxg5 {[%clk 0:01:11.1]} 0-1

[Event "*** Titled Tuesday Blitz"]
[Site "Chess.com"]
[Date "2019.08.06"]
[Round "8"]
[White "norwaytoadog"]
[Black "KacperPolOK"]
[Result "1-0"]
[WhiteElo "2248"]
[BlackElo "2406"]
[TimeControl "180+2"]
[EndTime "14:54:04 PDT"]
[Termination "norwaytoadog won by resignation"]

1. e4 {[%clk 0:03:01.9]} 1... c5 {[%clk 0:02:57]} 2. Nf3 {[%clk 0:03:02.7]} 2...
Nc6 {[%clk 0:02:58]} 3. Bb5 {[%clk 0:03:03.5]} 3... d6 {[%clk 0:02:58.9]} 4. O-O
{[%clk 0:03:01]} 4... Bd7 {[%clk 0:03:00.1]} 5. Re1 {[%clk 0:03:00.2]} 5... Nf6
{[%clk 0:03:00.4]} 6. c3 {[%clk 0:02:58.2]} 6... a6 {[%clk 0:02:58.7]} 7. Bf1
{[%clk 0:02:54.4]} 7... e5 {[%clk 0:02:55.9]} 8. h3 {[%clk 0:02:54.6]} 8... Be7
{[%clk 0:02:56.7]} 9. d4 {[%clk 0:02:52.4]} 9... O-O {[%clk 0:02:56.8]} 10. Nbd2
{[%clk 0:02:43.3]} 10... b5 {[%clk 0:02:56.5]} 11. a4 {[%clk 0:02:42]} 11... Qb6
{[%clk 0:02:54.3]} 12. d5 {[%clk 0:02:31.3]} 12... Na5 {[%clk 0:02:46.5]} 13. b4
{[%clk 0:01:55]} 13... Nb7 {[%clk 0:02:45.5]} 14. a5 {[%clk 0:01:51]} 14... Qc7
{[%clk 0:02:44]} 15. Bb2 {[%clk 0:01:37.8]} 15... Rac8 {[%clk 0:02:41.7]} 16.
Rc1 {[%clk 0:01:35.7]} 16... g6 {[%clk 0:02:43]} 17. c4 {[%clk 0:01:31.2]} 17...
Qb8 {[%clk 0:02:29.8]} 18. Ba3 {[%clk 0:01:21.3]} 18... Nh5 {[%clk 0:02:23.1]}
19. g3 {[%clk 0:01:13.4]} 19... f5 {[%clk 0:02:18.2]} 20. exf5 {[%clk
0:01:10.2]} 20... Bxf5 {[%clk 0:02:04]} 21. g4 {[%clk 0:00:58.7]} 21... Bxg4
{[%clk 0:02:04.8]} 22. hxg4 {[%clk 0:00:57.9]} 22... Nf4 {[%clk 0:02:06.4]} 23.
Ne4 {[%clk 0:00:51.7]} 23... Rc7 {[%clk 0:01:43.5]} 24. bxc5 {[%clk 0:00:45.6]}
24... dxc5 {[%clk 0:01:40.3]} 25. cxb5 {[%clk 0:00:40.9]} 25... axb5 {[%clk
0:01:36.7]} 26. d6 {[%clk 0:00:38.4]} 26... Rd7 {[%clk 0:01:37.6]} 27. dxe7
{[%clk 0:00:36.1]} 27... Rxd1 {[%clk 0:01:37.7]} 28. exf8=Q+ {[%clk 0:00:36.7]}
28... Qxf8 {[%clk 0:01:38.7]} 29. Rexd1 {[%clk 0:00:32.1]} 29... Nd3 {[%clk
0:01:27.4]} 30. Rxd3 {[%clk 0:00:28.5]} 30... Qf4 {[%clk 0:01:23.4]} 31. Re3
{[%clk 0:00:27.5]} 31... c4 {[%clk 0:01:21.1]} 32. Bb2 {[%clk 0:00:26.9]} 32...
Qxg4+ {[%clk 0:01:20.9]} 33. Ng3 {[%clk 0:00:27.8]} 33... e4 {[%clk 0:01:19.5]}
34. Rxe4 {[%clk 0:00:27]} 34... Qxf3 {[%clk 0:01:20]} 35. Rce1 {[%clk 0:00:27]}
35... Nd6 {[%clk 0:01:18.8]} 36. Re6 {[%clk 0:00:27.3]} 36... Nf5 {[%clk
0:01:15.9]} 37. Re8+ {[%clk 0:00:28.2]} 37... Kf7 {[%clk 0:01:16.6]} 38. Nxf5
{[%clk 0:00:28.2]} 38... gxf5 {[%clk 0:01:17.9]} 39. R1e7+ {[%clk 0:00:28.9]}
39... Kg6 {[%clk 0:01:19.2]} 40. Rg7+ {[%clk 0:00:29.3]} 40... Kh6 {[%clk
0:01:18.9]} 41. Re6+ {[%clk 0:00:29.8]} 41... Kh5 {[%clk 0:01:20.4]} 42. Rxh7+
{[%clk 0:00:29.1]} 42... Kg5 {[%clk 0:01:15.9]} 43. Rg7+ {[%clk 0:00:29.8]}
43... Kh5 {[%clk 0:01:11.1]} 44. Be2 {[%clk 0:00:30.7]} 1-0

[Event "*** Titled Tuesday Blitz"]
[Site "Chess.com"]
[Date "2019.08.06"]
[Round "8"]
[White "Ceejay271"]
[Black "ChessFunMaker"]
[Result "1-0"]
[WhiteElo "2277"]
[BlackElo "2236"]
[TimeControl "180+2"]
[EndTime "14:54:07 PDT"]
[Termination "Ceejay271 won by resignation"]

1. Nf3 {[%clk 0:03:01.9]} 1... Nf6 {[%clk 0:03:00.6]} 2. g3 {[%clk 0:03:02.9]}
2... g6 {[%clk 0:03:01.8]} 3. b3 {[%clk 0:03:03.9]} 3... Bg7 {[%clk 0:03:03.7]}
4. Bb2 {[%clk 0:03:05.3]} 4... O-O {[%clk 0:03:05.1]} 5. Bg2 {[%clk 0:03:06.8]}
5... d6 {[%clk 0:03:04.2]} 6. O-O {[%clk 0:03:08.1]} 6... e5 {[%clk 0:03:05.5]}
7. d4 {[%clk 0:03:08.5]} 7... Nbd7 {[%clk 0:03:02]} 8. dxe5 {[%clk 0:03:08.6]}
8... Ng4 {[%clk 0:03:03.3]} 9. Na3 {[%clk 0:03:06.4]} 9... Ngxe5 {[%clk
0:03:01.9]} 10. Nxe5 {[%clk 0:03:06.3]} 10... dxe5 {[%clk 0:02:54.3]} 11. Nc4
{[%clk 0:03:00.6]} 11... f5 {[%clk 0:02:41.2]} 12. Qd5+ {[%clk 0:02:44]} 12...
Kh8 {[%clk 0:02:41]} 13. Rfd1 {[%clk 0:02:44.5]} 13... c6 {[%clk 0:02:30.1]} 14.
Qd6 {[%clk 0:02:30.9]} 14... e4 {[%clk 0:02:13.6]} 15. Bxg7+ {[%clk 0:02:27.4]}
15... Kxg7 {[%clk 0:02:15.5]} 16. Ne5 {[%clk 0:02:22.3]} 16... Nxe5 {[%clk
0:00:31.3]} 17. Qxd8 {[%clk 0:02:20.1]} 17... Rxd8 {[%clk 0:00:33.2]} 18. Rxd8
{[%clk 0:02:21.3]} 18... Nf7 {[%clk 0:00:34]} 19. Rd2 {[%clk 0:02:04.1]} 19...
Be6 {[%clk 0:00:34.9]} 20. Rad1 {[%clk 0:02:03.8]} 20... Kf6 {[%clk 0:00:34.9]}
21. f3 {[%clk 0:02:04.3]} 21... Ke5 {[%clk 0:00:30.6]} 22. f4+ {[%clk
0:02:03.3]} 22... Kf6 {[%clk 0:00:30.9]} 23. e3 {[%clk 0:02:04.4]} 23... a5
{[%clk 0:00:16.4]} 24. a4 {[%clk 0:02:03.4]} 24... Ke7 {[%clk 0:00:17.2]} 25.
Bf1 {[%clk 0:02:04]} 25... Nh6 {[%clk 0:00:04.4]} 26. Bc4 {[%clk 0:02:03.2]}
26... Ng4 {[%clk 0:00:05.6]} 27. Bxe6 {[%clk 0:02:00.1]} 27... Kxe6 {[%clk
0:00:06.7]} 28. Re1 {[%clk 0:01:54.2]} 28... Nf6 {[%clk 0:00:05]} 29. c4 {[%clk
0:01:54.1]} 29... b5 {[%clk 0:00:05.2]} 30. Kf2 {[%clk 0:01:48.1]} 30... bxc4
{[%clk 0:00:05.2]} 31. bxc4 {[%clk 0:01:48.7]} 31... Rb8 {[%clk 0:00:06.6]} 32.
Red1 {[%clk 0:01:41.9]} 32... Rb4 {[%clk 0:00:06.4]} 33. Rd6+ {[%clk 0:01:42.5]}
33... Kf7 {[%clk 0:00:07.7]} 34. Rxc6 {[%clk 0:01:43.1]} 34... Ng4+ {[%clk
0:00:03.8]} 35. Ke2 {[%clk 0:01:43.1]} 35... Rb2+ {[%clk 0:00:03.8]} 36. Rd2
{[%clk 0:01:43.8]} 36... Rxd2+ {[%clk 0:00:03.2]} 37. Kxd2 {[%clk 0:01:44.8]}
37... Nxh2 {[%clk 0:00:05.1]} 38. Ra6 {[%clk 0:01:45.4]} 38... Nf1+ {[%clk
0:00:06.4]} 39. Ke2 {[%clk 0:01:39.9]} 39... Nxg3+ {[%clk 0:00:07.9]} 40. Kf2
{[%clk 0:01:40.6]} 40... Nh5 {[%clk 0:00:08.9]} 41. Rxa5 {[%clk 0:01:41.2]}
41... Nf6 {[%clk 0:00:08.4]} 42. Ra7+ {[%clk 0:01:42.2]} 42... Ke6 {[%clk
0:00:08.9]} 43. Ra6+ {[%clk 0:01:43.3]} 43... Ke7 {[%clk 0:00:08.7]} 44. Rxf6
{[%clk 0:01:44.2]} 44... Kxf6 {[%clk 0:00:08.3]} 45. a5 {[%clk 0:01:45.3]} 45...
Ke6 {[%clk 0:00:07.9]} 46. a6 {[%clk 0:01:46.6]} 46... g5 {[%clk 0:00:06.8]} 47.
fxg5 {[%clk 0:01:46.9]} 47... f4 {[%clk 0:00:06.6]} 48. exf4 {[%clk 0:01:47.8]}
1-0

[Event "*** Titled Tuesday Blitz"]
[Site "Chess.com"]
[Date "2019.08.06"]
[Round "8"]
[White "FearNoEvil12"]
[Black "Ginzburg_Yakov"]
[Result "0-1"]
[WhiteElo "2000"]
[BlackElo "2497"]
[TimeControl "180+2"]
[EndTime "14:54:07 PDT"]
[Termination "Ginzburg_Yakov won by resignation"]

1. e4 {[%clk 0:03:01.9]} 1... c5 {[%clk 0:03:00]} 2. Nc3 {[%clk 0:03:01.6]} 2...
e6 {[%clk 0:03:00.7]} 3. f4 {[%clk 0:03:03]} 3... d5 {[%clk 0:03:01.8]} 4. Nf3
{[%clk 0:03:04.1]} 4... Nf6 {[%clk 0:03:02.5]} 5. Bb5+ {[%clk 0:03:04.7]} 5...
Bd7 {[%clk 0:03:03.3]} 6. Qe2 {[%clk 0:03:06.1]} 6... Bxb5 {[%clk 0:02:59.3]} 7.
Qxb5+ {[%clk 0:03:03.9]} 7... Qd7 {[%clk 0:03:00.3]} 8. Qe2 {[%clk 0:03:05.4]}
8... dxe4 {[%clk 0:03:00.3]} 9. Nxe4 {[%clk 0:03:05.5]} 9... Nxe4 {[%clk
0:03:01]} 10. Qxe4 {[%clk 0:03:05.3]} 10... Nc6 {[%clk 0:03:01.6]} 11. d3 {[%clk
0:03:06.5]} 11... Be7 {[%clk 0:03:02.1]} 12. O-O {[%clk 0:03:06.4]} 12... O-O
{[%clk 0:03:03.8]} 13. Ne5 {[%clk 0:03:06.8]} 13... Qd4+ {[%clk 0:03:00.2]} 14.
Be3 {[%clk 0:03:00.1]} 14... Qxe4 {[%clk 0:03:01]} 15. dxe4 {[%clk 0:03:00.4]}
15... Nxe5 {[%clk 0:03:02.1]} 16. fxe5 {[%clk 0:03:01.8]} 16... Rfd8 {[%clk
0:02:44.1]} 17. Rad1 {[%clk 0:03:02.9]} 17... Kf8 {[%clk 0:02:44.8]} 18. Kf2
{[%clk 0:03:04]} 18... c4 {[%clk 0:02:39.3]} 19. Ke2 {[%clk 0:03:02.7]} 19... b5
{[%clk 0:02:38.1]} 20. Rxd8+ {[%clk 0:02:59.8]} 20... Rxd8 {[%clk 0:02:38.7]}
21. Rd1 {[%clk 0:03:00.1]} 21... a6 {[%clk 0:02:26.3]} 22. Rxd8+ {[%clk
0:02:57.3]} 22... Bxd8 {[%clk 0:02:27.3]} 23. Bd4 {[%clk 0:02:57.9]} 23... Ke7
{[%clk 0:02:22.8]} 24. b3 {[%clk 0:02:59.1]} 24... Kd7 {[%clk 0:02:14.9]} 25.
Kd2 {[%clk 0:02:58.3]} 25... Ba5+ {[%clk 0:02:12.5]} 26. Bc3 {[%clk 0:02:54.9]}
26... Bb6 {[%clk 0:02:09.8]} 27. bxc4 {[%clk 0:02:51.3]} 27... bxc4 {[%clk
0:02:10.2]} 28. Bb4 {[%clk 0:02:43.7]} 28... Bd4 {[%clk 0:02:09.5]} 29. Bc3
{[%clk 0:02:42.1]} 29... Bg1 {[%clk 0:02:08.8]} 30. h3 {[%clk 0:02:41.3]} 30...
Kc6 {[%clk 0:02:09.2]} 31. Bb4 {[%clk 0:02:39]} 31... Bd4 {[%clk 0:01:50.7]} 32.
Bc3 {[%clk 0:02:25.6]} 32... Kc5 {[%clk 0:01:34.8]} 33. g3 {[%clk 0:02:24.3]}
33... h5 {[%clk 0:01:33.9]} 34. g4 {[%clk 0:02:23.6]} 34... hxg4 {[%clk
0:01:19.7]} 35. hxg4 {[%clk 0:02:22.6]} 35... g5 {[%clk 0:01:18.8]} 36. a3
{[%clk 0:02:19.9]} 36... Bf2 {[%clk 0:00:43.4]} 37. Ke2 {[%clk 0:02:13.1]} 37...
Bg3 {[%clk 0:00:44.3]} 38. Bd2 {[%clk 0:01:49.4]} 38... Kd4 {[%clk 0:00:42.4]}
39. Kf3 {[%clk 0:01:46.4]} 39... Bxe5 {[%clk 0:00:43.3]} 40. Bxg5 {[%clk
0:01:44.9]} 40... Kc3 {[%clk 0:00:44.4]} 41. Bf4 {[%clk 0:01:41.5]} 41... Bxf4
{[%clk 0:00:33.9]} 42. Kxf4 {[%clk 0:01:41.9]} 42... Kxc2 {[%clk 0:00:35.6]} 43.
Ke5 {[%clk 0:01:42.5]} 43... Kd3 {[%clk 0:00:36.4]} 44. Kf6 {[%clk 0:01:44]}
44... c3 {[%clk 0:00:37]} 45. Kxf7 {[%clk 0:01:45.6]} 45... c2 {[%clk
0:00:38.4]} 46. g5 {[%clk 0:01:47.2]} 46... c1=Q {[%clk 0:00:38.6]} 47. g6
{[%clk 0:01:48.7]} 47... Qf4+ {[%clk 0:00:37.8]} 48. Kxe6 {[%clk 0:01:48.6]}
48... Qxe4+ {[%clk 0:00:38.5]} 49. Kf7 {[%clk 0:01:49.4]} 49... Qf5+ {[%clk
0:00:39.3]} 50. Kg7 {[%clk 0:01:49.1]} 50... Ke4 {[%clk 0:00:40]} 51. a4 {[%clk
0:01:47]} 51... a5 {[%clk 0:00:40.5]} 52. Kh8 {[%clk 0:01:46.6]} 52... Qh5+
{[%clk 0:00:40]} 53. Kg7 {[%clk 0:01:45.5]} 53... Kf5 {[%clk 0:00:41]} 0-1

[Event "*** Titled Tuesday Blitz"]
[Site "Chess.com"]
[Date "2019.08.06"]
[Round "8"]
[White "pandamaster3000"]
[Black "kinga2008"]
[Result "1-0"]
[WhiteElo "2294"]
[BlackElo "1926"]
[TimeControl "180+2"]
[EndTime "14:54:08 PDT"]
[Termination "pandamaster3000 won by resignation"]

1. e4 {[%clk 0:03:01.9]} 1... c5 {[%clk 0:03:00.4]} 2. Nf3 {[%clk 0:03:02.9]}
2... d6 {[%clk 0:02:57.5]} 3. Bb5+ {[%clk 0:03:04.1]} 3... Bd7 {[%clk
0:02:57.8]} 4. Bxd7+ {[%clk 0:03:04.8]} 4... Nxd7 {[%clk 0:02:59.7]} 5. O-O
{[%clk 0:03:04.8]} 5... Ngf6 {[%clk 0:03:00.2]} 6. Qe2 {[%clk 0:03:01.7]} 6...
g6 {[%clk 0:02:59.3]} 7. c3 {[%clk 0:02:51.7]} 7... Bg7 {[%clk 0:02:40.9]} 8. d4
{[%clk 0:02:52.4]} 8... cxd4 {[%clk 0:02:40.9]} 9. cxd4 {[%clk 0:02:54.3]} 9...
O-O {[%clk 0:02:42.6]} 10. e5 {[%clk 0:02:43.8]} 10... dxe5 {[%clk 0:02:34.5]}
11. dxe5 {[%clk 0:02:45.7]} 11... Nd5 {[%clk 0:02:31.5]} 12. e6 {[%clk
0:02:46.9]} 12... f5 {[%clk 0:02:25.6]} 13. exd7 {[%clk 0:02:46.1]} 13... Qxd7
{[%clk 0:02:23.1]} 14. Rd1 {[%clk 0:02:46.1]} 14... Rad8 {[%clk 0:02:23.1]} 15.
Bd2 {[%clk 0:02:29.7]} 15... Bxb2 {[%clk 0:02:07.5]} 16. Bh6 {[%clk 0:02:13.9]}
16... Bg7 {[%clk 0:01:53.2]} 17. Bxg7 {[%clk 0:02:11.4]} 17... Kxg7 {[%clk
0:01:55.1]} 18. Nc3 {[%clk 0:02:01.8]} 18... e6 {[%clk 0:01:36.1]} 19. Qe5+
{[%clk 0:02:00.8]} 19... Kg8 {[%clk 0:01:32.8]} 20. Nxd5 {[%clk 0:01:31.8]}
20... exd5 {[%clk 0:01:27.7]} 21. Rac1 {[%clk 0:01:32.7]} 21... Rfe8 {[%clk
0:01:24.1]} 22. Qd4 {[%clk 0:01:33.9]} 22... b6 {[%clk 0:01:21]} 23. Ne5 {[%clk
0:01:34.1]} 23... Qe6 {[%clk 0:01:19.4]} 24. f4 {[%clk 0:01:33.8]} 24... g5
{[%clk 0:01:11.1]} 25. Re1 {[%clk 0:01:29.1]} 25... gxf4 {[%clk 0:01:01]} 26.
Qxf4 {[%clk 0:01:31]} 26... Qf6 {[%clk 0:00:58]} 27. Qd4 {[%clk 0:01:22.9]}
27... Re6 {[%clk 0:00:55.1]} 28. Rc3 {[%clk 0:01:18.1]} 28... Rde8 {[%clk
0:00:51.5]} 29. Rg3+ {[%clk 0:01:19.5]} 29... Kf8 {[%clk 0:00:30]} 30. Nd7+
{[%clk 0:01:18.9]} 30... Kf7 {[%clk 0:00:29.9]} 31. Nxf6 {[%clk 0:01:16]} 31...
Rxe1+ {[%clk 0:00:29]} 32. Kf2 {[%clk 0:01:17.1]} 32... R8e2+ {[%clk 0:00:19.1]}
33. Kf3 {[%clk 0:01:18.4]} 33... Re6 {[%clk 0:00:12.5]} 34. Rh3 {[%clk
0:00:53.3]} 34... Rxf6 {[%clk 0:00:06.6]} 35. Rxh7+ {[%clk 0:00:49.8]} 35... Kg6
{[%clk 0:00:06.8]} 36. Rh6+ {[%clk 0:00:50.1]} 36... Kxh6 {[%clk 0:00:05]} 37.
Qxf6+ {[%clk 0:00:52]} 37... Kh7 {[%clk 0:00:06.5]} 38. Qh4+ {[%clk 0:00:53.3]}
38... Kg7 {[%clk 0:00:07.9]} 39. Qxe1 {[%clk 0:00:55.2]} 1-0

[Event "*** Titled Tuesday Blitz"]
[Site "Chess.com"]
[Date "2019.08.06"]
[Round "8"]
[White "GMMarcinDziuba"]
[Black "ama18"]
[Result "0-1"]
[WhiteElo "2717"]
[BlackElo "2488"]
[TimeControl "180+2"]
[EndTime "14:54:27 PDT"]
[Termination "ama18 won on time"]

1. Nf3 {[%clk 0:03:01.9]} 1... d5 {[%clk 0:02:59.6]} 2. g3 {[%clk 0:03:00.4]}
2... c6 {[%clk 0:03:00.7]} 3. Bg2 {[%clk 0:03:01.3]} 3... Bg4 {[%clk 0:03:02.2]}
4. O-O {[%clk 0:03:02.2]} 4... e6 {[%clk 0:03:03.4]} 5. d4 {[%clk 0:03:01]} 5...
Nf6 {[%clk 0:03:02.6]} 6. c4 {[%clk 0:03:02.2]} 6... Nbd7 {[%clk 0:03:01.8]} 7.
Nc3 {[%clk 0:03:03.4]} 7... Be7 {[%clk 0:02:57.6]} 8. Qb3 {[%clk 0:03:04.1]}
8... Qb6 {[%clk 0:02:56.4]} 9. h3 {[%clk 0:03:05.4]} 9... Bf5 {[%clk 0:02:52.4]}
10. c5 {[%clk 0:02:55.5]} 10... Qxb3 {[%clk 0:02:52.6]} 11. axb3 {[%clk
0:02:56.2]} 11... O-O {[%clk 0:02:46.6]} 12. b4 {[%clk 0:02:57.1]} 12... a6
{[%clk 0:02:47.8]} 13. Nh4 {[%clk 0:02:54.6]} 13... Bc2 {[%clk 0:02:47.7]} 14.
Bd2 {[%clk 0:02:40.1]} 14... Ne4 {[%clk 0:02:36.4]} 15. Nf3 {[%clk 0:01:56.6]}
15... Nxc3 {[%clk 0:02:06]} 16. Bxc3 {[%clk 0:01:37]} 16... Be4 {[%clk
0:02:07.3]} 17. Rfe1 {[%clk 0:01:32.7]} 17... Rad8 {[%clk 0:01:57.7]} 18. Bf1
{[%clk 0:01:31.2]} 18... Bf6 {[%clk 0:01:43.5]} 19. Nd2 {[%clk 0:01:27.7]} 19...
Bf5 {[%clk 0:01:32.7]} 20. Nb3 {[%clk 0:01:24.1]} 20... e5 {[%clk 0:01:24]} 21.
e3 {[%clk 0:01:14.4]} 21... e4 {[%clk 0:01:04.1]} 22. Kg2 {[%clk 0:00:48.9]}
22... Rfe8 {[%clk 0:01:04.3]} 23. Be2 {[%clk 0:00:49.3]} 23... Nf8 {[%clk
0:01:02.1]} 24. Na5 {[%clk 0:00:32.1]} 24... Re7 {[%clk 0:00:55.7]} 25. Ra3
{[%clk 0:00:31]} 25... g6 {[%clk 0:00:53.3]} 26. Rea1 {[%clk 0:00:30.7]} 26...
Bc8 {[%clk 0:00:53]} 27. Nxc6 {[%clk 0:00:26.7]} 27... bxc6 {[%clk 0:00:53.4]}
28. Bxa6 {[%clk 0:00:28.3]} 28... Ne6 {[%clk 0:00:43.6]} 29. b5 {[%clk
0:00:25.1]} 29... Bxa6 {[%clk 0:00:43]} 30. Rxa6 {[%clk 0:00:13.4]} 30... cxb5
{[%clk 0:00:43]} 31. Rb6 {[%clk 0:00:14.7]} 31... Rc8 {[%clk 0:00:24.9]} 32. b4
{[%clk 0:00:10.6]} 32... Rd7 {[%clk 0:00:24.1]} 33. Rxb5 {[%clk 0:00:10.8]}
33... Bd8 {[%clk 0:00:24.8]} 0-1

[Event "*** Titled Tuesday Blitz"]
[Site "Chess.com"]
[Date "2019.08.06"]
[Round "8"]
[White "Vnebo"]
[Black "Heineccius"]
[Result "1-0"]
[WhiteElo "2693"]
[BlackElo "2550"]
[TimeControl "180+2"]
[EndTime "14:54:28 PDT"]
[Termination "Vnebo won on time"]

1. e4 {[%clk 0:03:01.9]} 1... c5 {[%clk 0:03:00.6]} 2. Nf3 {[%clk 0:03:01.8]}
2... e6 {[%clk 0:03:01.5]} 3. g3 {[%clk 0:03:02]} 3... d5 {[%clk 0:03:00.8]} 4.
exd5 {[%clk 0:03:02]} 4... Qxd5 {[%clk 0:03:00.4]} 5. Nc3 {[%clk 0:02:57.8]}
5... Qd7 {[%clk 0:02:57.3]} 6. d4 {[%clk 0:02:46.6]} 6... Nf6 {[%clk 0:02:33.5]}
7. Bf4 {[%clk 0:02:21.9]} 7... Nc6 {[%clk 0:02:22.2]} 8. Bg2 {[%clk 0:01:29.4]}
8... cxd4 {[%clk 0:01:45.9]} 9. Ne2 {[%clk 0:01:29.4]} 9... Bb4+ {[%clk
0:01:39.2]} 10. Bd2 {[%clk 0:01:27.8]} 10... Bc5 {[%clk 0:01:33.6]} 11. O-O
{[%clk 0:01:22.8]} 11... O-O {[%clk 0:01:34.1]} 12. Bg5 {[%clk 0:01:21.3]} 12...
Ne4 {[%clk 0:01:26.5]} 13. Bf4 {[%clk 0:00:53.7]} 13... Re8 {[%clk 0:01:11.4]}
14. Ne5 {[%clk 0:00:50.7]} 14... Nxe5 {[%clk 0:01:10.5]} 15. Bxe5 {[%clk
0:00:52.6]} 15... Nf6 {[%clk 0:00:30]} 16. Nxd4 {[%clk 0:00:44.5]} 16... Nd5
{[%clk 0:00:25.5]} 17. c4 {[%clk 0:00:33.4]} 17... Nb6 {[%clk 0:00:25.2]} 18.
Qg4 {[%clk 0:00:25.5]} 18... Bf8 {[%clk 0:00:24.1]} 19. Rad1 {[%clk 0:00:20.7]}
19... f6 {[%clk 0:00:15.7]} 20. Nb5 {[%clk 0:00:14.2]} 20... Qf7 {[%clk
0:00:15]} 21. Bc3 {[%clk 0:00:14.7]} 21... e5 {[%clk 0:00:15.5]} 22. Qe2 {[%clk
0:00:13.2]} 22... Be6 {[%clk 0:00:16.8]} 23. b3 {[%clk 0:00:14]} 23... Rad8
{[%clk 0:00:17.8]} 24. Rxd8 {[%clk 0:00:13.2]} 24... Rxd8 {[%clk 0:00:18.9]} 25.
Nxa7 {[%clk 0:00:14.5]} 25... Ra8 {[%clk 0:00:19.3]} 26. Nb5 {[%clk 0:00:15.1]}
26... Bc5 {[%clk 0:00:19.6]} 27. Rd1 {[%clk 0:00:15.8]} 27... h6 {[%clk
0:00:17]} 28. h3 {[%clk 0:00:17]} 28... Nxc4 {[%clk 0:00:16.9]} 29. bxc4 {[%clk
0:00:16.8]} 29... Bxc4 {[%clk 0:00:16.8]} 30. Qb2 {[%clk 0:00:16.2]} 30... Rxa2
{[%clk 0:00:16.3]} 31. Qb1 {[%clk 0:00:16.8]} 31... Rxf2 {[%clk 0:00:15.6]} 32.
Rd8+ {[%clk 0:00:16.6]} 1-0